bitfinex/quotes_SOLUSD_20250402
["timestamp","ask_amount","ask_price","bid_price","bid_amount"]
[1743625742668,30.0,129.62,129.45,26.0]
[1743625742858,30.0,129.62,129.5,0.14216157]
[1743625743061,30.0,129.62,129.54,19.07613357]
[1743625743269,46.1893,129.9,129.57,26.0]
[1743625743443,20.0,129.86,129.54,0.28432314]
[1743625743642,46.9479,129.88,129.56,0.28432314]
[1743625743838,1.41711274,129.85,129.56,0.42648471]
[1743625744070,1.41711274,129.85,129.63,0.14216157]
[1743625744282,1.41711274,129.85,129.67,0.14216157]
[1743625744471,1.41711274,129.85,129.66,26.0]
[1743625744658,26.9479,129.88,129.63,265.16]
[1743625744857,26.0,129.83,129.52,7.7208]
[1743625745047,18.933972,129.65,129.36,7.7303]
[1743625745248,26.0,129.54,129.36,7.7303]
[1743625745673,7.86296157,129.52,129.26,27.0771]
[1743625745972,26.0,129.48,129.26,65.7588]
[1743625746174,26.0,129.48,129.26,27.0771]
[1743625746473,0.14216157,129.53,129.26,27.0771]
[1743625746474,265.16,129.53,129.26,9.8461272]
[1743625746673,0.14216157,129.4,129.27,1.41453657]
[1743625746980,0.28432314,129.35,129.26,9.8461272]
[1743625747349,26.0,129.28,129.26,9.8461272]
[1743625747653,265.16,129.39,129.26,9.8461272]
[1743625747970,18.64964886,129.35,129.26,9.8461272]
[1743625748173,265.16,129.53,129.26,17.5823272]
[1743625748343,82.0700515,129.82,129.26,17.5823272]
[1743625748344,265.16,129.52,129.29,26.0]
[1743625748548,1.41711274,129.52,129.37,26.0]
[1743625748774,20.0,129.49,129.26,9.8461272]
[1743625748945,0.42648471,129.41,129.26,9.8461272]
[1743625749150,1.41711274,129.4,129.26,9.8461272]
[1743625749347,0.14216157,129.37,129.26,9.8461272]
[1743625749559,0.14216157,129.39,129.26,9.8461272]
[1743625749560,26.0,129.32,129.26,9.8461272]
[1743625749762,44.933972,129.27,129.26,9.8461272]
[1743625750053,0.5,129.18,128.95,19.3873]
[1743625750249,26.0,129.16,128.95,19.3873]
[1743625750459,26.0,129.12,128.95,19.3873]
[1743625750766,0.5,129.09,128.89,19.3948]
[1743625750977,0.5,129.07,128.89,19.3948]
[1743625751155,18.64964886,129.07,128.92,26.0]
[1743625751351,18.64964886,129.07,128.89,19.3948]
[1743625751352,26.14216157,129.08,128.89,19.3948]
[1743625751556,0.5,129.01,128.88,7.7591]
[1743625751753,26.0,128.96,128.87,2.7953256]
[1743625751963,26.0,128.92,128.87,2.7953256]
[1743625752159,26.78432314,128.95,128.87,2.7953256]
[1743625752367,265.22,128.98,128.87,2.7953256]
[1743625752563,18.65547688,129.1,128.87,2.7953256]
[1743625752564,0.5,129.02,128.87,10.5550256]
[1743625752768,26.0,129.06,128.88,0.14216157]
[1743625752976,26.0,128.98,128.87,2.7953256]
[1743625753272,0.5,128.97,128.87,2.7953256]
[1743625753574,0.5,128.95,128.87,2.7953256]
[1743625753769,26.0,128.96,128.87,2.7953256]
[1743625754075,0.14216157,128.89,128.87,2.7953256]
[1743625754276,0.5,128.72,128.35,2.7953256]
[1743625754482,18.933972,128.62,128.5,7.782]
[1743625754646,0.5,128.62,128.35,2.7953256]
[1743625754855,18.79181043,128.67,128.51,7.781]
[1743625755171,0.14216157,128.67,128.42,38.9324]
[1743625755376,1.41711274,128.71,128.61,10.5706256]
[1743625755676,18.79181043,128.83,128.61,10.5706256]
[1743625755872,7.7603,128.86,128.61,68.8864256]
[1743625756085,1.41711274,128.83,128.65,19.07613357]
[1743625756255,20.0,129.14,128.72,0.28432314]
[1743625756459,0.5,129.12,128.74,0.14216157]
[1743625756654,20.0,129.09,128.75,0.28432314]
[1743625756969,1.41711274,129.11,128.77,0.28432314]
[1743625757351,1.41711274,129.11,128.79,19.07613357]
[1743625757558,293.0097,129.2,128.79,19.07613357]
[1743625757760,20.0,129.11,128.83,0.28432314]
[1743625758083,7.7429,129.15,128.83,19.07613357]
[1743625758084,1.41711274,129.1,128.83,19.07613357]
[1743625758257,7.7429,129.15,128.83,19.07613357]
[1743625758461,7.7429,129.15,128.85,19.07613357]
[1743625758675,7.7405,129.19,128.9,0.14216157]
[1743625758873,7.74,129.2,128.92,18.79181043]
[1743625759066,20.0,129.23,128.92,18.79181043]
[1743625759380,0.28432314,129.13,128.84,18.64964886]
[1743625759678,265.92,129.16,128.85,0.14216157]
[1743625759883,1.41711274,129.19,128.87,19.57613357]
[1743625760106,265.92,129.25,128.86,65.963]
[1743625760107,1.41711274,129.15,128.94,0.28432314]
[1743625760253,27.0478,129.4,128.98,0.14216157]
[1743625760452,20.0,129.35,129.0,0.28432314]
[1743625760656,18.65547688,129.37,129.0,19.07613357]
[1743625760959,1.41711274,129.34,129.0,0.42648471]
[1743625761165,1.41711274,129.34,129.02,18.933972]
[1743625761360,27.0478,129.4,129.05,0.42648471]
[1743625761676,27.0478,129.4,129.09,0.14216157]
[1743625761897,9.14501274,129.4,129.11,19.07613357]
[1743625762258,87.10471274,129.4,129.11,19.07613357]
[1743625762472,0.28432314,129.38,129.11,0.42648471]
[1743625762659,18.79181043,129.35,129.0,265.78]
[1743625762860,0.28432314,129.32,129.0,265.78]
[1743625763061,0.14216157,129.3,129.01,0.42648471]
[1743625763260,18.79181043,129.3,129.01,0.42648471]
[1743625763480,0.14216157,129.27,129.01,0.42648471]
[1743625763676,0.14216157,129.27,129.0,265.78]
[1743625763886,1.41711274,129.29,128.93,18.65547688]
[1743625763887,0.14216157,129.24,128.93,18.65547688]
[1743625764067,0.14216157,129.24,128.79,265.78]
[1743625764068,18.79763845,129.2,128.79,265.78]
[1743625764272,0.28432314,129.14,128.79,265.78]
[1743625764467,19.07613357,129.11,128.79,265.78]
[1743625764687,1.41711274,129.1,128.79,265.78]
[1743625764990,19.07613357,129.09,128.79,265.78]
[1743625765177,20.0,129.05,128.68,265.82]
[1743625765383,286.31324631,129.04,128.7,30.0]
[1743625765695,19.07613357,129.02,128.7,30.0]
[1743625765889,19.07613357,129.0,128.7,30.0]
[1743625766193,0.14216157,128.94,128.68,265.82]
[1743625766488,1.41711274,128.93,128.72,265.85]
[1743625766701,7.7441,129.13,128.74,18.65547688]
[1743625766870,7.7441,129.13,128.87,0.14216157]
[1743625767071,9.16121274,129.13,128.9,0.28432314]
[1743625767271,9.16121274,129.13,128.92,26.42648471]
[1743625767484,7.7441,129.13,128.89,0.42648471]
[1743625767684,18.79181043,129.11,128.89,0.42648471]
[1743625768003,18.79181043,129.09,128.77,265.82]
[1743625768180,67.25741274,129.1,128.78,0.14216157]
[1743625768383,7.7459,129.1,128.79,20.0694574]
[1743625768574,7.7459,129.1,128.8,0.42648471]
[1743625768776,1.41711274,129.09,128.86,26.0]
[1743625769079,7.7441,129.13,128.91,19.07613357]
[1743625769406,27.68436949,129.19,128.93,0.28432314]
[1743625769698,46.4395,129.2,128.94,0.42648471]
[1743625769699,26.0,129.08,128.94,0.42648471]
[1743625769996,7.7453,129.11,128.92,265.88]
[1743625770168,46.4431,129.19,128.94,0.14216157]
[1743625770371,19.3532,129.18,129.02,0.28432314]
[1743625770574,265.88,129.32,129.06,0.42648471]
[1743625770797,265.88,129.32,129.01,26.0]
[1743625770798,19.3363,129.29,128.97,0.28432314]
[1743625771003,19.3363,129.29,129.05,0.14216157]
[1743625771180,1.41711274,129.28,129.05,0.14216157]
[1743625771374,1.41711274,129.28,129.09,0.42648471]
[1743625771572,0.063,129.12,129.01,18.79181043]
[1743625771798,0.063,129.12,128.95,9.75039804]
[1743625772104,0.063,129.12,128.82,7.7627]
[1743625772276,26.0,129.08,128.82,7.7627]
[1743625772482,0.42648471,129.03,128.82,7.7627]
[1743625772680,0.28432314,129.02,128.74,19.4177]
[1743625773005,26.0,129.01,128.74,19.4177]
[1743625773298,26.0,129.01,128.76,0.14216157]
[1743625773501,20.0,129.1,128.76,0.14216157]
[1743625773670,143.1111,129.27,128.87,0.28432314]
[1743625773875,135.3754,129.27,128.99,19.07613357]
[1743625774072,155.3754,129.27,128.99,0.42648471]
[1743625774278,18.65547688,129.25,128.99,26.42648471]
[1743625774489,18.65547688,129.25,129.0,0.28432314]
[1743625774688,1.41711274,129.11,128.88,7.759]
[1743625774880,18.64964886,129.1,128.91,26.0]
[1743625775084,18.64964886,129.1,128.81,7.7633]
[1743625775299,19.07613357,129.09,128.81,7.7633]
[1743625775496,26.0,129.06,128.77,7.7657]
[1743625775704,18.64964886,129.05,128.84,0.14216157]
[1743625776002,265.96,129.15,128.89,0.14216157]
[1743625776208,7.808,129.12,128.97,0.42648471]
[1743625776383,0.063,129.12,129.04,26.0]
[1743625776581,0.063,129.12,129.05,0.42648471]
[1743625776908,0.063,129.12,129.05,0.28432314]
[1743625777089,0.063,129.12,129.07,0.42648471]
[1743625777287,0.063,129.12,129.11,19.07613357]
[1743625777515,265.96,129.34,129.04,0.14216157]
[1743625777677,265.96,129.34,129.08,0.14216157]
[1743625777883,7.7321,129.33,129.16,26.0]
[1743625778111,7.7321,129.33,129.14,0.28432314]
[1743625778405,7.7321,129.33,129.09,7.7465]
[1743625778605,18.79181043,129.32,128.99,265.32493164]
[1743625778816,0.14216157,129.28,129.0,7.7519]
[1743625779111,0.42648471,129.2,128.98,7.7531]
[1743625779278,26.0,129.13,128.9,27.1527]
[1743625779479,19.07613357,129.16,128.91,0.14216157]
[1743625779480,18.64964886,129.16,128.91,0.14216157]
[1743625779680,18.79181043,129.26,128.96,0.14216157]
[1743625779906,265.96,129.32,128.98,18.79181043]
[1743625780211,265.96,129.32,129.02,0.14216157]
[1743625780409,265.96,129.32,129.05,0.14216157]
[1743625780598,265.92,129.45,129.08,26.0]
[1743625780789,7.7273,129.42,129.19,26.0]
[1743625780991,265.92,129.45,129.24,0.42648471]
[1743625781192,19.315,129.44,129.24,18.933972]
[1743625781518,265.92,129.45,129.1,19.07613357]
[1743625781812,265.92,129.45,129.12,19.07613357]
[1743625781987,7.7255,129.44,129.12,19.07613357]
[1743625782196,26.063,129.41,129.12,19.07613357]
[1743625782498,0.063,129.41,129.18,19.07613357]
[1743625782696,0.063,129.41,129.24,0.5]
[1743625782901,0.063,129.41,129.28,0.42648471]
[1743625783278,0.063,129.41,129.26,0.14216157]
[1743625783485,0.063,129.41,129.11,104.5618]
[1743625783801,7.7315,129.34,129.06,38.741]
[1743625783987,26.0,129.31,129.06,38.741]
[1743625784187,7.7315,129.34,129.07,1.41672846]
[1743625784188,18.79181043,129.3,129.07,1.41672846]
[1743625784392,26.0,129.34,129.09,26.0]
[1743625784584,18.64964886,129.33,129.1,0.14216157]
[1743625784906,0.14216157,129.25,129.01,65.8862]
[1743625785108,26.0,129.25,129.06,26.0]
[1743625785284,0.28432314,129.31,129.06,26.0]
[1743625785485,0.14216157,129.36,129.15,0.14216157]
[1743625785688,265.74,129.37,129.15,0.14216157]
[1743625785889,7.7303,129.36,129.03,30.0]
[1743625786186,7.7303,129.36,129.04,21.40169247]
[1743625786388,265.74,129.37,129.21,0.14216157]
[1743625786389,26.0,129.34,129.21,0.14216157]
[1743625786682,0.063,129.41,129.21,0.28432314]
[1743625787298,0.063,129.41,129.25,26.0]
[1743625787502,0.063,129.41,129.29,26.0]
[1743625787803,0.063,129.41,129.34,19.07613357]
[1743625788003,0.063,129.41,129.35,0.14216157]
[1743625788205,0.063,129.41,129.32,7.7323]
[1743625788510,0.063,129.41,129.17,265.7]
[1743625788685,26.0,129.38,129.21,7.7393]
[1743625788886,18.71264886,129.41,129.21,7.7393]
[1743625788887,0.063,129.41,129.21,46.4359]
[1743625789295,0.063,129.41,129.24,26.0]
[1743625789489,0.063,129.41,129.21,65.7842]
[1743625789683,0.063,129.41,129.22,20.6220853]
[1743625789885,0.063,129.41,129.34,19.07613357]
[1743625790151,0.063,129.41,129.37,26.0]
[1743625790296,2.7953256,129.52,129.42,0.14216157]
[1743625790612,2.7953256,129.52,129.31,10.51051802]
[1743625790788,2.7953256,129.52,129.23,1.9149744]
[1743625790789,26.0,129.51,129.37,26.0]
[1743625790987,2.7953256,129.52,129.46,0.42648471]
[1743625791188,2.7953256,129.52,129.35,45.07613357]
[1743625791400,0.063,129.5,129.35,45.07613357]
[1743625791604,0.063,129.5,129.36,1.41355243]
[1743625791812,0.063,129.5,129.45,0.28432314]
[1743625791982,0.063,129.5,129.47,0.42648471]
[1743625792190,0.063,129.5,129.41,0.14216157]
[1743625792410,0.063,129.5,129.36,20.73875243]
[1743625792689,0.063,129.5,129.32,0.14216157]
[1743625792690,18.64964886,129.47,129.32,0.14216157]
[1743625792900,26.0,129.46,129.32,0.14216157]
[1743625793092,18.64964886,129.45,129.31,7.7333]
[1743625793616,18.64964886,129.45,129.22,7.7387]
[1743625793815,0.14216157,129.44,129.22,7.7387]
[1743625794016,7.7261,129.43,129.17,0.14216157]
[1743625794200,26.14216157,129.45,129.19,0.14216157]
[1743625794391,26.0,129.46,129.19,0.14216157]
[1743625794593,18.64964886,129.41,129.18,1.41552208]
[1743625794822,26.0,129.38,129.16,27.0981]
[1743625794994,0.42648471,129.36,129.16,27.0981]
[1743625795312,26.0,129.31,129.08,0.03]
[1743625795618,26.0,129.26,129.16,0.03]
[1743625795818,26.0,129.22,129.16,0.03]
[1743625796022,18.64964886,129.25,129.16,0.03]
[1743625796023,26.0,129.18,129.16,0.03]
[1743625796315,265.36,129.4,129.08,0.03]
[1743625796491,0.42648471,129.35,129.08,0.03]
[1743625796693,26.0,129.34,129.08,0.03]
[1743625796899,0.14216157,129.33,129.1,0.14216157]
[1743625797114,77.17410611,129.39,129.08,0.03]
[1743625797338,0.14216157,129.29,129.08,0.03]
[1743625797640,0.28432314,129.31,129.08,0.03]
[1743625797817,1.41711274,129.38,129.08,0.03]
[1743625798005,0.14216157,129.36,129.11,0.14216157]
[1743625798195,0.14216157,129.36,129.15,0.14216157]
[1743625798399,7.7297,129.37,129.19,0.28432314]
[1743625798594,0.14216157,129.36,129.19,0.14216157]
[1743625798803,0.063,129.43,129.21,0.14216157]
[1743625799001,0.063,129.43,129.29,0.14216157]
[1743625799199,7.7894,129.43,129.25,18.64964886]
[1743625799408,7.7894,129.43,129.26,0.14216157]
[1743625799409,0.063,129.43,129.26,0.14216157]
[1743625799607,7.7893,129.43,129.2,44.933972]
[1743625799916,7.7273,129.41,129.14,19.358]
[1743625800123,19.07613357,129.36,129.14,19.358]
[1743625800317,9.20641274,129.43,129.16,0.14216157]
[1743625800509,20.79551274,129.43,129.14,19.358]
[1743625800713,0.5,129.39,129.12,7.7447]
[1743625800902,0.28432314,129.3,129.08,0.03]
[1743625801094,26.0,129.23,129.08,0.03]
[1743625801297,19.07613357,129.26,129.08,0.03]
[1743625801298,0.14216157,129.22,129.08,0.03]
[1743625801499,26.0,129.23,129.08,7.777]
[1743625801702,18.64964886,129.22,129.08,7.777]
[1743625801901,265.46,129.27,129.11,0.14216157]
[1743625802101,7.7309,129.35,129.11,18.933972]
[1743625802303,7.7267,129.42,129.19,0.14216157]
[1743625802506,1.41711274,129.41,129.23,0.42648471]
[1743625802698,1.41711274,129.41,129.23,18.933972]
[1743625802913,0.063,129.43,129.23,0.14216157]
[1743625803121,0.063,129.43,129.24,0.14216157]
[1743625803310,0.063,129.43,129.28,0.42648471]
[1743625803699,27.1047,129.43,129.2,0.28432314]
[1743625804030,1.41711274,129.42,129.14,38.7166]
[1743625804207,1.41711274,129.42,129.25,26.0]
[1743625804416,1.41711274,129.42,129.3,0.42648471]
[1743625804604,0.063,129.43,129.19,45.07613357]
[1743625805167,0.063,129.43,129.19,63.73161045]
[1743625805306,0.063,129.43,129.19,0.14216157]
[1743625805505,0.42648471,129.35,129.15,265.4]
[1743625805728,19.07613357,129.35,129.14,38.7166]
[1743625805916,26.0,129.4,129.14,26.0]
[1743625806104,0.063,129.43,129.19,0.28432314]
[1743625806306,7.7894,129.43,129.28,0.28432314]
[1743625806525,7.7894,129.43,129.21,0.42648471]
[1743625806526,0.14216157,129.39,129.21,0.42648471]
[1743625806726,26.0,129.42,129.24,0.42648471]
[1743625807037,0.063,129.43,129.32,0.14216157]
[1743625807201,0.063,129.43,129.35,26.0]
[1743625807408,0.14216157,129.42,129.24,265.4]
[1743625807625,26.063,129.43,129.25,0.28432314]
[1743625807823,0.063,129.43,129.25,0.28432314]
[1743625808134,26.0,129.37,129.19,38.86819942]
[1743625808307,26.0,129.37,129.2,27.0897]
[1743625808509,19.07613357,129.36,129.21,0.14216157]
[1743625808708,18.79181043,129.36,129.23,26.0]
[1743625808949,1.48011274,129.43,129.19,7.7704]
[1743625809148,18.79181043,129.36,129.19,7.7704]
[1743625809456,1.48011274,129.43,129.19,7.7704]
[1743625809457,0.14216157,129.31,129.19,7.7704]
[1743625809745,0.14216157,129.31,129.19,0.03]
[1743625809950,26.0,129.35,129.19,0.03]
[1743625810166,0.5,129.28,129.19,0.03]
[1743625810330,0.14216157,129.21,128.85,22.92464681]
[1743625810645,26.0,129.18,129.03,19.3748]
[1743625810953,26.0,129.14,128.96,19.3847]
[1743625811253,19.07613357,129.17,128.86,40.20192681]
[1743625811454,26.0,129.14,128.98,19.3825]
[1743625811652,26.0,129.14,128.97,7.7533]
[1743625811653,26.0,129.1,128.97,7.7533]
[1743625811837,18.79181043,129.17,129.05,7.7484]
[1743625812156,20.0,129.26,128.97,18.933972]
[1743625812157,0.14216157,129.21,128.97,18.933972]
[1743625812336,265.4,129.26,129.02,0.14216157]
[1743625812528,0.14216157,129.22,129.02,0.14216157]
[1743625812729,0.14216157,129.22,128.98,1.41771703]
[1743625813031,18.64964886,129.14,128.88,65.9526]
[1743625813252,1.41711274,129.21,128.93,18.64964886]
[1743625813427,1.41711274,129.21,128.93,18.65547688]
[1743625813631,26.0,129.11,128.88,65.9526]
[1743625813848,19.07613357,129.1,128.88,27.1569]
[1743625814056,26.0,129.02,128.83,38.8098]
[1743625814350,26.0,128.98,128.73,27.1885]
[1743625814528,26.14216157,128.98,128.73,27.1885]
[1743625814729,26.0,128.9,128.74,1.42035997]
[1743625814931,18.64964886,128.85,128.72,7.7987]
[1743625815135,0.28432314,128.95,128.72,66.0647]
[1743625815332,26.0,128.9,128.72,66.0647]
[1743625815547,26.0,128.9,128.72,27.2207]
[1743625815740,18.64964886,128.89,128.72,27.2207]
[1743625815941,7.7489,129.05,128.72,66.0647]
[1743625816142,1.41711274,129.05,128.84,26.0]
[1743625816359,27.0813,129.24,128.93,0.28432314]
[1743625816563,27.0813,129.24,128.97,0.28432314]
[1743625816760,27.0813,129.24,128.86,0.14216157]
[1743625816761,0.5,129.12,128.86,0.14216157]
[1743625816961,0.14216157,129.03,128.72,304.634]
[1743625817159,0.28432314,129.03,128.84,0.03]
[1743625817353,1.41711274,129.02,128.84,0.03]
[1743625817549,0.14216157,129.09,128.84,0.03]
[1743625817750,18.933972,129.03,128.84,0.03]
[1743625817954,26.0,128.96,128.84,0.03]
[1743625818250,18.79181043,128.97,128.84,0.03]
[1743625818447,26.0,128.9,128.84,0.03]
[1743625818845,0.28432314,128.95,128.72,0.03]
[1743625818846,19.07613357,128.85,128.72,0.03]
[1743625819152,9.16531647,128.95,128.73,7.7681]
[1743625819349,85.8862,129.01,128.78,0.28432314]
[1743625819350,0.28432314,128.99,128.78,0.28432314]
[1743625819664,0.14216157,129.02,128.97,0.03]
[1743625819853,0.14216157,128.95,128.72,0.03]
[1743625820055,0.14216157,128.87,128.72,0.03]
[1743625820364,18.64964886,128.85,128.72,0.17216157]
[1743625820565,0.28432314,128.99,128.73,0.14216157]
[1743625820754,8.03682314,128.99,128.75,26.0]
[1743625820944,0.14216157,128.97,128.79,26.0]
[1743625821150,7.7459,129.1,128.81,0.28432314]
[1743625821453,1.41711274,129.08,128.83,26.0]
[1743625821769,1.41711274,129.08,128.81,265.9]
[1743625821947,1.41711274,129.08,128.82,0.14216157]
[1743625822149,19.07613357,129.05,128.83,7.7621]
[1743625822481,0.14216157,128.99,128.83,7.7621]
[1743625822705,0.14216157,128.99,128.84,0.14216157]
[1743625822982,1.41711274,129.04,128.91,0.42648471]
[1743625823267,1.41711274,129.04,128.84,266.02]
[1743625823268,7.7393,129.21,128.99,0.42648471]
[1743625823581,20.0,129.19,128.88,0.28432314]
[1743625823747,20.0,129.19,128.94,48.40035375]
[1743625823748,18.65547688,129.14,128.94,48.40035375]
[1743625823959,0.14216157,129.13,128.91,0.14216157]
[1743625824159,7.7447,129.12,128.95,26.0]
[1743625824366,0.14216157,129.11,128.92,27.1485]
[1743625824578,0.14216157,129.11,128.93,0.42648471]
[1743625824880,7.7447,129.12,128.93,0.42648471]
[1743625824881,9.16151274,129.13,129.01,48.40035375]
[1743625825064,0.14216157,129.12,128.92,27.1485]
[1743625825261,9.16151274,129.13,128.96,26.42648471]
[1743625825458,7.7405,129.19,129.01,44.79181043]
[1743625825692,7.7397,129.21,129.12,48.40035375]
[1743625826000,0.063,129.24,129.07,26.0]
[1743625826291,0.063,129.24,129.09,48.40035375]
[1743625826595,1.41711274,129.23,129.06,0.28432314]
[1743625826806,1.41711274,129.23,129.15,48.40035375]
[1743625827092,1.41711274,129.23,129.06,18.933972]
[1743625827093,0.063,129.24,129.09,26.0]
[1743625827298,18.64964886,129.2,129.07,26.42648471]
[1743625827597,0.063,129.24,129.08,26.0]
[1743625827773,0.063,129.24,129.09,0.42648471]
[1743625827982,0.063,129.24,129.2,48.40035375]
[1743625828191,0.063,129.24,129.23,48.40035375]
[1743625828566,0.063,129.24,129.23,48.54251532]
[1743625828770,0.063,129.37,129.27,0.28432314]
[1743625828966,0.063,129.37,129.24,0.14216157]
[1743625829494,0.063,129.37,129.3,48.40035375]
[1743625829699,0.063,129.37,129.33,48.40035375]
[1743625829889,0.063,129.37,129.2,86.85317458]
[1743625830092,48.40035375,129.3,129.19,8.02482314]
[1743625830270,26.0,129.29,129.16,7.7423]
[1743625830476,18.64964886,129.24,129.05,38.7444]
[1743625830676,67.19216418,129.24,129.16,48.40035375]
[1743625830873,265.9,129.34,129.18,48.40035375]
[1743625831171,26.0,129.26,129.04,65.8709]
[1743625831374,26.0,129.22,129.04,65.8709]
[1743625831566,1.41711274,129.33,129.19,48.40035375]
[1743625831784,26.0,129.2,129.15,48.40035375]
[1743625831999,26.0,129.13,129.0,7.7519]
[1743625832203,26.0,129.08,128.94,0.03]
[1743625832368,18.79181043,129.07,128.94,0.03]
[1743625832570,27.1065,129.12,128.94,0.03]
[1743625832767,18.64964886,129.11,128.94,0.03]
[1743625832992,18.64964886,129.07,128.94,0.03]
[1743625833200,48.40035375,129.03,128.94,0.03]
[1743625833401,0.14216157,129.02,128.94,0.03]
[1743625833574,0.14216157,129.07,128.94,0.03]
[1743625833904,18.64964886,128.99,128.94,0.03]
[1743625834072,26.0,129.04,128.94,0.03]
[1743625834272,38.7236,129.12,128.94,0.03]
[1743625834273,0.14216157,129.11,128.94,0.03]
[1743625834472,20.42648471,129.14,128.94,0.03]
[1743625834682,45.74564886,129.17,129.01,48.40035375]
[1743625834683,18.64964886,129.09,129.01,48.40035375]
[1743625834886,7.7417,129.17,129.04,48.40035375]
[1743625835092,7.7381,129.23,129.06,26.0]
[1743625835281,285.1806,129.27,129.15,48.40035375]
[1743625835472,0.14216157,129.23,128.91,38.91159468]
[1743625835680,1.41711274,129.22,129.04,0.28432314]
[1743625836007,0.14216157,129.16,128.88,18.79181043]
[1743625836208,0.14216157,129.1,128.9,38.04883309]
[1743625836376,0.14216157,129.1,128.86,48.40035375]
[1743625836377,18.79181043,129.01,128.88,7.759]
[1743625836580,26.0,129.12,128.88,7.759]
[1743625836788,0.42648471,129.07,128.88,27.1568]
[1743625836991,0.42648471,129.07,128.78,265.84]
[1743625836992,48.54251532,129.01,128.78,265.84]
[1743625837180,0.28432314,129.01,128.88,7.759]
[1743625837380,0.14216157,128.98,128.82,0.03]
[1743625837590,19.07613357,128.98,128.82,0.03]
[1743625837778,45.07613357,128.95,128.82,0.03]
[1743625837981,45.07613357,128.95,128.83,48.40035375]
[1743625837982,18.64964886,128.91,128.83,48.40035375]
[1743625838177,7.7542,128.97,128.87,48.40035375]
[1743625838381,19.07613357,128.96,128.86,48.40035375]
[1743625838696,1.41711274,128.98,128.92,48.40035375]
[1743625839011,265.86,129.03,128.9,0.42648471]
[1743625839189,9.44553869,129.07,128.82,7.7922]
[1743625839395,0.14216157,128.91,128.82,0.03]
[1743625839593,18.933972,128.95,128.82,7.7926]
[1743625839775,44.64964886,128.94,128.85,48.40035375]
[1743625839982,18.79181043,128.93,128.82,0.03]
[1743625840190,18.64964886,128.93,128.86,48.40035375]
[1743625840393,48.40035375,128.95,128.87,48.40035375]
[1743625840598,26.0,128.95,128.82,0.03]
[1743625840810,18.64964886,129.01,128.92,48.40035375]
[1743625841097,0.14216157,128.98,128.83,0.28432314]
[1743625841404,0.14216157,128.96,128.88,48.40035375]
[1743625841602,18.79181043,129.01,128.83,26.0]
[1743625841814,26.0,128.98,128.93,48.40035375]
[1743625842010,0.28432314,128.96,128.91,48.40035375]
[1743625842319,1.41711274,129.02,128.95,48.40035375]
[1743625842481,1.41711274,129.02,128.83,7.7621]
[1743625842482,0.14216157,129.02,128.83,7.7621]
[1743625842679,18.64964886,128.99,128.83,27.1675]
[1743625842982,7.7482,129.07,128.98,48.40035375]
[1743625843199,18.65547688,129.11,128.93,26.0]
[1743625843417,18.65547688,129.11,129.01,48.40035375]
[1743625843588,266.02,129.17,128.98,26.0]
[1743625843786,266.02,129.17,128.99,0.42648471]
[1743625844090,266.02,129.27,129.14,48.40035375]
[1743625844294,30.0,129.15,129.14,48.40035375]
[1743625844509,266.02,129.27,129.14,48.40035375]
[1743625844714,48.40035375,129.15,128.96,0.14216157]
[1743625845010,1.41711274,129.23,128.92,19.3918]
[1743625845231,1.41711274,129.23,129.11,48.40035375]
[1743625845420,1.41711274,129.23,129.08,0.14216157]
[1743625845601,1.41711274,129.23,128.98,0.5]
[1743625845602,1.41711274,129.23,128.97,0.28432314]
[1743625845782,26.14216157,129.23,128.97,0.28432314]
[1743625845982,0.14216157,129.15,129.06,48.40035375]
[1743625846186,0.14216157,129.18,128.98,0.14216157]
[1743625846525,1.41711274,129.22,129.11,48.40035375]
[1743625846724,9.15641274,129.22,129.04,19.07613357]
[1743625846941,7.7393,129.22,129.04,0.42648471]
[1743625847243,0.14216157,129.12,128.98,26.0]